bitfinex/quotes_BTCUSD_20250610
["timestamp","ask_amount","ask_price","bid_price","bid_amount"]
[1749595372892,0.3702,109710.0,109700.0,0.09483126]
[1749595373541,0.3702,109710.0,109700.0,0.02215641]
[1749595373969,0.47609425,109710.0,109700.0,0.02215636]
[1749595374408,0.50343325,109710.0,109700.0,0.02215636]
[1749595375042,0.50343325,109710.0,109700.0,0.02215643]
[1749595375510,0.50343325,109710.0,109700.0,0.02215642]
[1749595375921,0.50343325,109710.0,109700.0,0.00508794]
[1749595376165,0.50343325,109710.0,109700.0,0.02215642]
[1749595377046,0.50343325,109710.0,109700.0,0.02215323]
[1749595377226,0.50343325,109710.0,109700.0,0.00508794]
[1749595377648,0.50343325,109710.0,109700.0,0.02215323]
[1749595378848,0.50343325,109710.0,109700.0,0.00508794]
[1749595379392,0.50343325,109710.0,109700.0,0.02215268]
[1749595379981,0.50343325,109710.0,109700.0,0.02215205]
[1749595380186,0.50343325,109710.0,109700.0,0.00508794]
[1749595380625,0.50343325,109710.0,109700.0,0.02215205]
[1749595380817,0.50343325,109710.0,109700.0,0.00508794]
[1749595381193,0.50343325,109710.0,109700.0,0.02215207]
[1749595381992,0.50343325,109710.0,109700.0,0.02215166]
[1749595382265,0.50343325,109710.0,109700.0,0.02215168]
[1749595383716,0.50343325,109710.0,109700.0,0.02215155]
[1749595383954,0.50343325,109710.0,109700.0,0.02215145]
[1749595384369,0.50343325,109710.0,109700.0,0.00508794]
[1749595384581,0.50343325,109710.0,109700.0,0.02215142]
[1749595385299,0.50343325,109710.0,109700.0,0.02215164]
[1749595385518,0.50343325,109710.0,109700.0,0.00508794]
[1749595385928,0.50343325,109710.0,109700.0,0.02215173]
[1749595386965,0.50343325,109710.0,109700.0,0.02215188]
[1749595387165,0.50343325,109710.0,109700.0,0.00508794]
[1749595387361,0.50343325,109710.0,109700.0,0.0221518]
[1749595387944,0.467339,109710.0,109700.0,0.0385518]
[1749595388129,0.44,109710.0,109700.0,0.11122665]
[1749595388364,0.44,109710.0,109700.0,0.11122691]
[1749595389112,0.44,109710.0,109700.0,0.09416279]
[1749595389545,0.44,109710.0,109700.0,0.09482703]
[1749595390288,0.44,109710.0,109700.0,0.12622735]
[1749595390708,0.44,109710.0,109700.0,0.09276279]
[1749595390892,0.44,109710.0,109700.0,0.10982837]
[1749595391107,0.57819425,109710.0,109700.0,0.09482837]
[1749595391323,0.57819425,109710.0,109700.0,0.02215352]
[1749595391531,0.62376504,109710.0,109700.0,0.02215352]
[1749595391718,0.60553625,109710.0,109700.0,0.02215729]
[1749595391939,0.60553625,109710.0,109700.0,0.02115682]
[1749595392145,0.60553625,109710.0,109700.0,0.00408794]
[1749595392357,0.60753625,109710.0,109700.0,0.01915693]
[1749595392562,0.60953625,109710.0,109700.0,0.01915693]
[1749595392977,0.60753625,109710.0,109700.0,0.01915693]
[1749595393182,0.61053625,109710.0,109700.0,0.02015693]
[1749595393325,0.61053625,109710.0,109700.0,0.02013612]
[1749595393907,0.60853625,109710.0,109700.0,0.02013612]
[1749595394121,0.61153625,109710.0,109700.0,0.00308794]
[1749595394304,0.61153625,109710.0,109700.0,0.02013612]
[1749595394984,0.61153625,109710.0,109700.0,0.02013591]
[1749595395522,0.61153625,109710.0,109700.0,0.00308794]
[1749595395950,0.61153625,109710.0,109700.0,0.02013591]
[1749595396127,0.61153625,109710.0,109700.0,0.02012676]
[1749595398239,0.61153625,109710.0,109700.0,0.02012489]
[1749595398672,0.61153625,109710.0,109700.0,0.0201249]
[1749595399572,0.61153625,109710.0,109700.0,0.02012156]
[1749595400002,0.61153625,109710.0,109700.0,0.02012055]
[1749595400207,0.61153625,109710.0,109700.0,0.00308794]
[1749595400408,0.61153625,109710.0,109700.0,0.02012059]
[1749595402040,0.63989625,109710.0,109700.0,0.02012059]
[1749595402694,0.63989625,109710.0,109700.0,0.02011874]
[1749595403106,0.63989625,109710.0,109700.0,0.00308794]
[1749595403305,0.63989625,109710.0,109700.0,0.02011809]
[1749595403719,0.63989625,109710.0,109700.0,0.00308794]
[1749595403874,0.63989625,109710.0,109700.0,0.02011809]
[1749595404671,0.63989625,109710.0,109700.0,0.0201173]
[1749595406603,0.63989625,109710.0,109700.0,0.00308794]
[1749595406777,0.63969625,109710.0,109700.0,0.02011604]
[1749595407632,0.51153625,109710.0,109700.0,0.02011604]
[1749595407808,0.63969625,109710.0,109700.0,0.02011604]
[1749595408212,0.63969625,109710.0,109700.0,0.02011591]
[1749595408417,0.63969625,109710.0,109700.0,0.00308794]
[1749595408648,0.63969625,109710.0,109700.0,0.02011604]
[1749595408856,0.63969625,109710.0,109700.0,0.02011606]
[1749595409262,0.63969625,109710.0,109700.0,0.02011613]
[1749595409467,0.63969625,109710.0,109700.0,0.00308794]
[1749595409671,0.63969625,109710.0,109700.0,0.02011606]
[1749595410238,0.63969625,109710.0,109700.0,0.02011607]
[1749595410511,0.63969625,109710.0,109700.0,0.02011608]
[1749595411556,0.63969625,109710.0,109700.0,0.02011668]
[1749595412618,0.64881044,109710.0,109700.0,0.02011683]
[1749595412830,0.63969625,109710.0,109700.0,0.02011683]
[1749595413255,0.64881044,109710.0,109700.0,0.02011799]
[1749595413600,0.63969625,109710.0,109700.0,0.02011799]
[1749595413838,0.63969625,109710.0,109700.0,0.00308794]
[1749595414083,0.63969625,109710.0,109700.0,0.02011799]
[1749595415003,0.64881044,109710.0,109700.0,0.02011799]
[1749595415481,0.64881044,109710.0,109700.0,0.02011755]
[1749595415939,0.63969625,109710.0,109700.0,0.02011755]
[1749595417530,0.63969625,109710.0,109700.0,0.02011989]
[1749595418397,0.63969625,109710.0,109700.0,0.02012485]
[1749595418851,0.63969625,109710.0,109700.0,0.02012484]
[1749595419061,0.63969625,109710.0,109700.0,0.02012485]
[1749595419706,0.63969625,109710.0,109700.0,0.02012513]
[1749595419892,0.63969625,109710.0,109700.0,0.02013745]
[1749595420104,0.63969625,109710.0,109700.0,0.02013748]
[1749595420675,0.63969625,109710.0,109700.0,0.02013754]
[1749595420879,0.51153625,109710.0,109700.0,0.02013754]
[1749595421118,0.5644954,109710.0,109700.0,0.02013754]
[1749595421327,0.5644954,109710.0,109700.0,0.03663754]
[1749595421888,0.57903625,109710.0,109700.0,0.03665095]
[1749595422096,0.4646954,109710.0,109700.0,0.03618794]
[1749595422304,0.5644954,109710.0,109700.0,0.053251]
[1749595422518,0.57903625,109710.0,109700.0,0.05325068]
[1749595422723,0.346,109710.0,109700.0,0.05325068]
[1749595422941,0.346,109710.0,109700.0,0.05325014]
[1749595422942,0.4458,109710.0,109700.0,0.05325014]
[1749595423567,0.4458,109710.0,109700.0,0.03618794]
[1749595423916,0.4458,109710.0,109700.0,0.05324931]
[1749595424321,0.4458,109710.0,109700.0,0.05323829]
[1749595424971,0.4458,109710.0,109700.0,0.05323803]
[1749595425558,0.4458,109710.0,109700.0,0.03618794]
[1749595426066,0.4458,109710.0,109700.0,0.05323802]
[1749595426522,0.4458,109710.0,109700.0,0.05322863]
[1749595426737,0.4458,109710.0,109700.0,0.03618794]
[1749595426947,0.4458,109710.0,109700.0,0.05322861]
[1749595428330,0.4458,109710.0,109700.0,0.05322867]
[1749595428827,0.4458,109710.0,109700.0,0.05322885]
[1749595430081,0.4458,109710.0,109700.0,0.05322236]
[1749595431980,0.4458,109710.0,109700.0,0.05321969]
[1749595432395,0.55169425,109710.0,109700.0,0.03661969]
[1749595432642,0.55169425,109710.0,109700.0,0.02011785]
[1749595433216,0.55169425,109710.0,109700.0,0.02011841]
[1749595433426,0.55169425,109710.0,109700.0,0.00308794]
[1749595433617,0.55169425,109710.0,109700.0,0.02011841]
[1749595433844,0.55169425,109710.0,109700.0,0.00308794]
[1749595434008,0.55169425,109710.0,109700.0,0.02011841]
[1749595434853,0.55169425,109710.0,109700.0,0.02011639]
[1749595436502,0.55169425,109710.0,109700.0,0.02011677]
[1749595437068,0.55169425,109710.0,109700.0,0.00308794]
[1749595437521,0.55169425,109710.0,109700.0,0.02011516]
[1749595438163,0.55169425,109710.0,109700.0,0.00308794]
[1749595438583,0.55169425,109710.0,109700.0,0.02011525]
[1749595438943,0.55169425,109710.0,109700.0,0.02011354]
[1749595439793,0.55169425,109710.0,109700.0,0.00308794]
[1749595440438,0.55169425,109710.0,109700.0,0.02011516]
[1749595441614,0.58399425,109710.0,109700.0,0.02011516]
[1749595441845,0.58399425,109710.0,109700.0,0.02011496]
[1749595442786,0.58399425,109710.0,109700.0,0.02011714]
[1749595443215,0.58399425,109710.0,109700.0,0.02011742]
[1749595443434,0.58399425,109710.0,109700.0,0.00308794]
[1749595443631,0.58399425,109710.0,109700.0,0.02011747]
[1749595443905,0.58399425,109710.0,109700.0,0.00308794]
[1749595444119,0.58399425,109710.0,109700.0,0.02011754]
[1749595444330,0.58399425,109710.0,109700.0,0.02012046]
[1749595444747,0.58399425,109710.0,109700.0,0.0201228]
[1749595445588,0.58399425,109710.0,109700.0,0.02012279]
[1749595446595,0.58399425,109710.0,109700.0,0.02012894]
[1749595446793,0.58399425,109710.0,109700.0,0.02012893]
[1749595447003,0.58399425,109710.0,109700.0,0.00308794]
[1749595447323,0.58399425,109710.0,109700.0,0.02012893]
[1749595447771,0.58399425,109710.0,109700.0,0.02012913]
[1749595447976,0.58399425,109710.0,109700.0,0.0201292]
[1749595448593,0.58399425,109710.0,109700.0,0.00308794]
[1749595448803,0.58399425,109710.0,109700.0,0.0201292]
[1749595450238,0.58399425,109710.0,109700.0,0.02014239]
[1749595451301,0.58399425,109710.0,109700.0,0.0201497]
[1749595452118,0.58399425,109710.0,109700.0,0.00308794]
[1749595452322,0.58399425,109710.0,109700.0,0.0201497]
[1749595452517,0.58399425,109710.0,109700.0,0.02014873]
[1749595453214,0.58399425,109710.0,109700.0,0.02014875]
[1749595453381,0.58399425,109710.0,109700.0,0.02014873]
[1749595453984,0.58399425,109710.0,109700.0,0.00308794]
[1749595454183,0.58399425,109710.0,109700.0,0.02014873]
[1749595455002,0.58399425,109710.0,109700.0,0.0201478]
[1749595455349,0.58399425,109710.0,109700.0,0.02014781]
[1749595456598,0.58399425,109710.0,109700.0,0.00308794]
[1749595457050,0.58399425,109710.0,109700.0,0.02014821]
[1749595457249,0.58399425,109710.0,109700.0,0.02014816]
[1749595457451,0.58399425,109710.0,109700.0,0.02014818]
[1749595458139,0.58399425,109710.0,109700.0,0.02014817]
[1749595458565,0.58399425,109710.0,109700.0,0.00308794]
[1749595458717,0.58399425,109710.0,109700.0,0.02014886]
[1749595459183,0.58399425,109710.0,109700.0,0.00308794]
[1749595459387,0.58399425,109710.0,109700.0,0.02015083]
[1749595460600,0.55141425,109710.0,109700.0,0.00308794]
[1749595460800,0.55141425,109710.0,109700.0,0.05165068]
[1749595460996,0.55141425,109710.0,109700.0,0.02015068]
[1749595461659,0.55141425,109710.0,109700.0,0.02015371]
[1749595461859,0.55141425,109710.0,109700.0,0.0201537]
[1749595462243,0.55141425,109710.0,109700.0,0.02015372]
[1749595463459,0.55141425,109710.0,109700.0,0.02015031]
[1749595463662,0.55141425,109710.0,109700.0,0.0201503]
[1749595464085,0.55141425,109710.0,109700.0,0.02015031]
[1749595464288,0.45189425,109710.0,109700.0,0.03675031]
[1749595464531,0.55137425,109710.0,109700.0,0.05325031]
[1749595465038,0.55137425,109710.0,109700.0,0.03618794]
[1749595465236,0.55137425,109710.0,109700.0,0.05325026]
[1749595465661,0.55137425,109710.0,109700.0,0.0532508]
[1749595466551,0.55137425,109710.0,109700.0,0.03618794]
[1749595466781,0.55137425,109710.0,109700.0,0.05324826]
[1749595467184,0.55137425,109710.0,109700.0,0.03618794]
[1749595467410,0.55137425,109710.0,109700.0,0.05324825]
[1749595467630,0.346,109710.0,109700.0,0.05324831]
[1749595467839,0.44548,109710.0,109700.0,0.05324831]
[1749595468503,0.44548,109710.0,109700.0,0.0532483]
[1749595468708,0.44548,109710.0,109700.0,0.03618794]
[1749595468920,0.44548,109710.0,109700.0,0.00308794]
[1749595469131,0.44548,109710.0,109700.0,0.0201483]
[1749595469594,0.346,109710.0,109700.0,0.0354483]
[1749595469814,0.44544,109710.0,109700.0,0.0354483]
[1749595470286,0.346,109710.0,109700.0,0.0201483]
[1749595470492,0.44544,109710.0,109700.0,0.02014611]
[1749595471120,0.44544,109710.0,109700.0,0.02014612]
[1749595471766,0.44544,109710.0,109700.0,0.02014562]
[1749595471972,0.44544,109710.0,109700.0,0.00308794]
[1749595472419,0.44544,109710.0,109700.0,0.02014578]
[1749595473482,0.44544,109710.0,109700.0,0.02014473]
[1749595473906,0.44544,109710.0,109700.0,0.02014474]
[1749595474500,0.44544,109710.0,109700.0,0.02014452]
[1749595474936,0.44544,109710.0,109700.0,0.02014506]
[1749595476589,0.44544,109710.0,109700.0,0.00308794]
[1749595476848,0.44544,109710.0,109700.0,0.02014505]
[1749595477508,0.44544,109710.0,109700.0,0.02014506]
[1749595478016,0.45998085,109710.0,109700.0,0.0201456]
[1749595478193,0.58263425,109710.0,109700.0,0.0201456]
[1749595478422,0.58263425,109710.0,109700.0,0.02014627]
[1749595478636,0.58263425,109710.0,109700.0,0.02014639]
[1749595478843,0.58263425,109710.0,109700.0,0.00308794]
[1749595479052,0.58263425,109710.0,109700.0,0.02014639]
[1749595479255,0.58263425,109710.0,109700.0,0.02014753]
[1749595479675,0.58263425,109710.0,109700.0,0.02014925]
[1749595479891,0.60997525,109710.0,109700.0,0.02014925]
[1749595480097,0.60997525,109710.0,109700.0,0.02014087]
[1749595482364,0.60997525,109710.0,109700.0,0.00308794]
[1749595482595,0.60997525,109710.0,109700.0,0.02014047]
[1749595483519,0.60997525,109710.0,109700.0,0.02013373]
[1749595485147,0.60997525,109710.0,109700.0,0.02012973]
[1749595485777,0.60997525,109710.0,109700.0,0.02012805]
[1749595486871,0.60997525,109710.0,109700.0,0.02012561]
[1749595487097,0.60997525,109710.0,109700.0,0.02012562]
[1749595487968,0.57855525,109710.0,109700.0,0.02012488]
[1749595488193,0.57855525,109710.0,109700.0,0.00308794]
[1749595488401,0.57855525,109710.0,109700.0,0.02012456]
[1749595488610,0.59385525,109710.0,109700.0,0.02012456]
[1749595488816,0.59385525,109710.0,109700.0,0.02012268]
[1749595489523,0.61035525,109710.0,109700.0,0.02012268]
[1749595489734,0.61035525,109710.0,109700.0,0.02012267]
[1749595490156,0.63831525,109710.0,109700.0,0.02012249]
[1749595491007,0.63831525,109710.0,109700.0,0.00308794]
[1749595491233,0.63831525,109710.0,109700.0,0.02012401]
[1749595491459,0.63831525,109710.0,109700.0,0.00308794]
[1749595491687,0.63831525,109710.0,109700.0,0.02012401]
[1749595492352,0.60651525,109710.0,109700.0,0.02012401]
[1749595493212,0.60651525,109710.0,109700.0,0.02012532]
[1749595493396,0.60651525,109710.0,109700.0,0.00308794]
[1749595493632,0.62281525,109710.0,109700.0,0.0201254]
[1749595494667,0.63911525,109710.0,109700.0,0.0201254]
[1749595495114,0.63911525,109710.0,109700.0,0.00308794]
[1749595495336,0.63911525,109710.0,109700.0,0.02012539]
[1749595495804,0.57851525,109710.0,109700.0,0.02012539]
[1749595496023,0.55117425,109710.0,109700.0,0.02012539]
[1749595496474,0.55117425,109710.0,109700.0,0.02012691]
[1749595497212,0.55117425,109710.0,109700.0,0.00308794]
[1749595497441,0.55117425,109710.0,109700.0,0.02012674]
[1749595498331,0.55117425,109710.0,109700.0,0.00308794]
[1749595498536,0.55117425,109710.0,109700.0,0.02012797]
[1749595498760,0.55117425,109710.0,109700.0,0.00308794]
[1749595498939,0.55117425,109710.0,109700.0,0.02012796]
[1749595501348,0.55117425,109710.0,109700.0,0.02013007]
[1749595501520,0.55117425,109710.0,109700.0,0.02013141]
[1749595502148,0.55117425,109710.0,109700.0,0.00308794]
[1749595502361,0.55117425,109710.0,109700.0,0.02013142]
[1749595503203,0.55117425,109710.0,109700.0,0.02013337]
[1749595503620,0.55117425,109710.0,109700.0,0.02013334]
[1749595503827,0.55117425,109710.0,109700.0,0.00308794]
[1749595504035,0.55117425,109710.0,109700.0,0.02013416]
[1749595505191,0.55117425,109710.0,109700.0,0.02013697]
[1749595505695,0.55117425,109710.0,109700.0,0.02013696]
[1749595506327,0.36054085,109710.0,109700.0,0.02013696]
[1749595506533,0.36054085,109710.0,109700.0,0.10666855]
[1749595506534,0.346,109710.0,109700.0,0.10666855]
[1749595506746,0.4452,109710.0,109700.0,0.08961953]
[1749595506953,0.4452,109710.0,109700.0,0.10666771]
[1749595507459,0.4452,109710.0,109700.0,0.08961953]
[1749595507671,0.4452,109710.0,109700.0,0.10666762]
[1749595508408,0.4452,109710.0,109700.0,0.10666619]
[1749595509087,0.4452,109710.0,109700.0,0.08961953]
[1749595509355,0.4452,109710.0,109700.0,0.10666617]
[1749595509564,0.4452,109710.0,109700.0,0.05761953]
[1749595510036,0.4452,109710.0,109700.0,0.07466633]
[1749595510511,0.4452,109710.0,109700.0,0.07466642]
[1749595510717,0.4452,109710.0,109700.0,0.05761953]
[1749595510932,0.4452,109710.0,109700.0,0.07466642]
[1749595511682,0.4452,109710.0,109700.0,0.05761953]
[1749595511683,0.346,109710.0,109700.0,0.05761953]
[1749595511921,0.44516,109710.0,109700.0,0.0746646]
[1749595512407,0.44516,109710.0,109700.0,0.00308794]
[1749595512737,0.44516,109710.0,109700.0,0.02013298]
[1749595513415,0.44516,109710.0,109700.0,0.00308794]
[1749595513864,0.44516,109710.0,109700.0,0.02013322]
[1749595514981,0.44516,109710.0,109700.0,0.00308794]
[1749595515423,0.44516,109710.0,109700.0,0.02013561]
[1749595516528,0.44516,109710.0,109700.0,0.02013942]
[1749595516744,0.44516,109710.0,109700.0,0.00308794]
[1749595517192,0.44516,109710.0,109700.0,0.02013942]
[1749595518572,0.44516,109710.0,109700.0,0.00308794]
[1749595518776,0.44516,109710.0,109700.0,0.02014284]
[1749595519939,0.44512,109710.0,109700.0,0.03448794]
[1749595520145,0.44512,109710.0,109700.0,0.05154193]
[1749595520359,0.44512,109710.0,109700.0,0.05154194]
[1749595520576,0.44512,109710.0,109700.0,0.05154197]
[1749595521044,0.44512,109710.0,109700.0,0.05154313]
[1749595521715,0.44512,109710.0,109700.0,0.05154314]
[1749595521952,0.44512,109710.0,109700.0,0.03448794]
[1749595522153,0.44512,109710.0,109700.0,0.05154307]
[1749595522367,0.346,109710.0,109700.0,0.05154306]
[1749595522591,0.44508,109710.0,109700.0,0.05154306]
[1749595522816,0.44508,109710.0,109700.0,0.03448794]
[1749595523045,0.44508,109710.0,109700.0,0.05154469]
[1749595523512,0.44508,109710.0,109700.0,0.05154467]
[1749595523782,0.44508,109710.0,109700.0,0.03448794]
[1749595524224,0.44508,109710.0,109700.0,0.05154461]
[1749595524434,0.44508,109710.0,109700.0,0.05154459]
[1749595524893,0.44508,109710.0,109700.0,0.03448794]
[1749595525103,0.346,109710.0,109700.0,0.05154451]
[1749595525322,0.346,109710.0,109700.0,0.05154444]
[1749595525323,0.44508,109710.0,109700.0,0.05154444]
[1749595525546,0.44508,109710.0,109700.0,0.10716279]
[1749595525768,0.44508,109710.0,109700.0,0.12421894]
[1749595525995,0.44508,109710.0,109700.0,0.12421827]
[1749595526211,0.346,109710.0,109700.0,0.12421827]
[1749595526433,0.44504,109710.0,109700.0,0.12421827]
[1749595526658,0.44504,109710.0,109700.0,0.05154373]
[1749595526877,0.10504,109710.0,109700.0,0.10716279]
[1749595527109,0.10504,109710.0,109700.0,0.12421795]
[1749595527346,0.10504,109710.0,109700.0,0.12421788]
[1749595527639,0.10504,109710.0,109700.0,0.12421785]
[1749595528295,0.10504,109710.0,109700.0,0.12421663]
[1749595528516,0.10504,109710.0,109700.0,0.12421667]
[1749595528727,0.10504,109710.0,109700.0,0.10716279]
[1749595529367,0.10504,109710.0,109700.0,0.12421666]
[1749595529798,0.006,109710.0,109700.0,0.12421666]
[1749595530003,0.006,109710.0,109700.0,0.10716279]
[1749595530216,0.006,109710.0,109700.0,0.12421812]
[1749595530950,0.006,109710.0,109700.0,0.14127345]
[1749595531310,0.006,109710.0,109700.0,0.10987345]
[1749595531746,0.006,109710.0,109700.0,0.10987208]
[1749595533824,0.006,109710.0,109700.0,0.10987213]
[1749595534655,0.006,109710.0,109700.0,0.10987381]
[1749595535599,0.006,109710.0,109700.0,0.1098738]
[1749595536856,0.006,109710.0,109700.0,0.10987788]
[1749595537065,0.006,109710.0,109700.0,0.1098779]
[1749595537246,0.006,109710.0,109700.0,0.10987791]
[1749595538361,0.006,109710.0,109700.0,0.10987683]
[1749595538572,0.006,109710.0,109700.0,0.10987709]
[1749595538795,0.006,109710.0,109700.0,0.09281812]
[1749595539045,0.006,109710.0,109700.0,0.10987695]
[1749595539258,0.006,109710.0,109700.0,0.10987689]
[1749595540350,0.006,109710.0,109700.0,0.09281812]
[1749595540565,0.006,109710.0,109700.0,0.10987713]
[1749595541892,0.006,109710.0,109700.0,0.1098779]
[1749595542326,0.006,109710.0,109700.0,0.10987781]
[1749595542550,0.006,109710.0,109700.0,0.10987785]
[1749595543849,0.006,109710.0,109700.0,0.10987874]
[1749595546008,0.006,109710.0,109700.0,0.10988013]
[1749595546441,0.006,109710.0,109700.0,0.10988065]
[1749595547541,0.006,109710.0,109700.0,0.09281812]
[1749595547752,0.006,109710.0,109700.0,0.10988055]
[1749595548401,0.006,109710.0,109700.0,0.10988324]
[1749595548615,0.006,109710.0,109700.0,0.10988361]
[1749595549084,0.006,109710.0,109700.0,0.09281812]
[1749595549341,0.006,109710.0,109700.0,0.10988333]
[1749595550508,0.006,109710.0,109700.0,0.10988641]
[1749595550742,0.006,109710.0,109700.0,0.10988633]
[1749595550972,0.006,109710.0,109700.0,0.09281812]
[1749595551204,0.006,109710.0,109700.0,0.10988633]
[1749595551975,0.006,109710.0,109700.0,0.09281812]
[1749595552212,0.006,109710.0,109700.0,0.10988671]
[1749595552448,0.006,109710.0,109700.0,0.10988661]
[1749595552705,0.006,109710.0,109700.0,0.10988662]
[1749595553653,0.006,109710.0,109700.0,0.09281812]
[1749595553861,0.006,109710.0,109700.0,0.10989067]
[1749595555781,0.006,109710.0,109700.0,0.10989063]
[1749595556209,0.006,109710.0,109700.0,0.10989114]
[1749595556889,0.006,109710.0,109700.0,0.09281812]
[1749595557093,0.006,109710.0,109700.0,0.10989117]
[1749595559628,0.006,109710.0,109700.0,0.10989115]
[1749595559866,0.006,109710.0,109700.0,0.10989117]
[1749595560070,0.006,109710.0,109700.0,0.10989115]
[1749595560310,0.006,109710.0,109700.0,0.09281812]
[1749595560529,0.006,109710.0,109700.0,0.10989116]
[1749595560745,0.006,109710.0,109700.0,0.09281812]
[1749595560746,0.0377,109710.0,109700.0,0.09281812]
[1749595560958,0.0377,109710.0,109700.0,0.10989119]
[1749595561596,0.0377,109710.0,109700.0,0.1098913]
[1749595561820,0.0377,109710.0,109700.0,0.09281812]
[1749595562069,0.49808858,109710.0,109700.0,0.10989129]
[1749595562299,0.55632483,109710.0,109700.0,0.03721697]
[1749595562524,0.58366483,109710.0,109700.0,0.03721697]
[1749595562755,0.04624085,109700.0,109690.0,0.06336678]
[1749595562987,0.04624085,109700.0,109690.0,0.06341486]
[1749595563208,0.0734787,109700.0,109690.0,0.06341486]
[1749595564112,0.0754787,109700.0,109690.0,0.06341486]
[1749595565240,0.0774787,109700.0,109690.0,0.06341486]
[1749595566231,0.1688321,109700.0,109690.0,0.06341486]
[1749595568010,0.2681521,109700.0,109690.0,0.06341486]
[1749595568654,0.2681521,109700.0,109690.0,0.02242151]
[1749595568871,0.2681521,109700.0,109690.0,0.01331188]
[1749595569307,0.38505938,109690.0,109680.0,0.04974775]
[1749595569523,0.47641278,109690.0,109680.0,0.04979603]
[1749595569733,0.47641278,109690.0,109680.0,0.0406864]
[1749595570268,0.50375778,109690.0,109680.0,0.03157677]
[1749595570529,0.50375778,109690.0,109680.0,0.02246714]
[1749595570996,0.50375778,109690.0,109680.0,0.01335751]
[1749595573694,0.0317,109670.0,109660.0,0.002]
[1749595573915,0.1313,109670.0,109660.0,0.00208813]
[1749595574129,0.57719425,109670.0,109660.0,0.00208813]
[1749595574343,0.60454425,109670.0,109660.0,0.00208813]
[1749595574551,0.61378619,109670.0,109660.0,0.00208813]
[1749595574769,0.61578619,109670.0,109660.0,0.00208813]
[1749595574976,0.61778619,109670.0,109660.0,0.00208813]
[1749595579799,0.61778619,109670.0,109660.0,0.01908167]
[1749595580015,0.61778619,109670.0,109660.0,0.01908196]
[1749595580863,0.61778619,109670.0,109660.0,0.00208813]
[1749595581119,0.61778619,109670.0,109660.0,0.01906201]
[1749595581770,0.61778619,109670.0,109660.0,0.00208813]
[1749595582189,0.61778619,109670.0,109660.0,0.00143046]
[1749595582400,0.61778619,109670.0,109660.0,0.00124322]
[1749595583690,0.51818619,109670.0,109660.0,0.00124322]
[1749595583902,0.64538619,109670.0,109660.0,0.00124322]
[1749595584112,0.51818619,109670.0,109660.0,0.00124322]
[1749595584330,0.64534619,109670.0,109660.0,0.00124322]
[1749595584762,0.51818619,109670.0,109660.0,0.00124322]
[1749595585243,0.64526619,109670.0,109660.0,0.00124322]
[1749595585678,0.38059194,109670.0,109660.0,0.00124322]
[1749595585904,0.45272194,109670.0,109660.0,0.03360115]
[1749595586126,0.46812194,109670.0,109660.0,0.01820115]
[1749595586336,0.46816194,109670.0,109660.0,0.01820235]
[1749595587000,0.46816194,109670.0,109660.0,0.00124322]
[1749595587217,0.45276194,109670.0,109660.0,0.01820236]
[1749595587647,0.45268194,109670.0,109660.0,0.01820236]
[1749595588274,0.45268194,109670.0,109660.0,0.01820237]
[1749595588699,0.45268194,109670.0,109660.0,0.01821053]
[1749595588907,0.45268194,109670.0,109660.0,0.00124322]
[1749595590271,0.45252194,109670.0,109660.0,0.00124322]
[1749595590960,0.35324194,109670.0,109660.0,0.00124322]
[1749595591190,0.35324194,109670.0,109660.0,0.03314322]
[1749595591416,0.45244194,109670.0,109660.0,0.03314322]
[1749595591908,0.35324194,109670.0,109660.0,0.03314322]
[1749595592154,0.11256194,109670.0,109660.0,0.03314322]
[1749595592397,0.01324194,109670.0,109660.0,0.03314322]
[1749595592866,0.004,109670.0,109660.0,0.03314322]
[1749595593322,0.004,109670.0,109660.0,0.48555403]
[1749595593541,0.004,109670.0,109660.0,0.57690743]
[1749595593997,0.004,109670.0,109660.0,0.12449662]
[1749595594231,0.002,109670.0,109660.0,0.12449662]
[1749595594693,0.43932,109700.0,109660.0,0.12449662]
[1749595594927,0.08200387,109690.0,109680.0,0.0313]
[1749595595142,0.07273058,109690.0,109680.0,0.0313]
[1749595596199,0.07473058,109690.0,109680.0,0.0313]
[1749595597283,0.083877,109690.0,109680.0,0.0313]
[1749595597496,0.085877,109690.0,109680.0,0.0313]
[1749595600474,0.085877,109690.0,109670.0,0.0325]
[1749595601548,0.115577,109690.0,109660.0,0.32994322]
[1749595602167,0.113577,109690.0,109660.0,0.32994322]
[1749595603588,0.04084642,109690.0,109660.0,0.32994322]
[1749595603805,0.04084642,109690.0,109660.0,0.33094322]
[1749595604314,0.04084642,109690.0,109660.0,0.33294322]
[1749595606766,0.04084642,109690.0,109660.0,0.03674322]
[1749595607218,0.02514642,109690.0,109660.0,0.03674322]
[1749595607455,0.0159,109680.0,109660.0,0.03674322]
[1749595608141,0.0318,109680.0,109660.0,0.03674322]
[1749595608580,0.0318,109680.0,109660.0,0.03474322]
[1749595608803,0.0318,109680.0,109660.0,0.03574322]
[1749595609266,0.0318,109680.0,109660.0,0.03674322]
[1749595610650,0.0318,109680.0,109660.0,0.00424322]
[1749595611533,0.0318,109680.0,109660.0,0.01974322]
[1749595611829,0.0318,109680.0,109660.0,0.01479322]
[1749595614722,0.0318,109680.0,109650.0,0.82628]
[1749595614931,0.0318,109680.0,109650.0,0.91811683]
[1749595616009,0.0318,109680.0,109650.0,0.92011683]
[1749595616623,0.0318,109680.0,109650.0,0.62391683]
[1749595617474,0.0328,109680.0,109650.0,0.62691683]
[1749595619866,0.0306,109670.0,109650.0,0.30436343]
[1749595620712,0.0306,109670.0,109650.0,0.30136343]
[1749595621131,0.0316,109670.0,109650.0,0.30436343]
[1749595621585,0.10333058,109660.0,109650.0,0.00548343]
[1749595621811,0.0306,109660.0,109650.0,0.00548343]
[1749595622254,0.0316,109670.0,109650.0,0.00348343]
[1749595622463,0.0316,109670.0,109650.0,0.00548343]
[1749595622897,0.0316,109670.0,109650.0,0.00348343]
[1749595623167,0.001,109670.0,109650.0,0.00348343]
[1749595623377,0.0317,109660.0,109650.0,0.00248343]
[1749595623591,0.0327,109660.0,109650.0,0.00548343]
[1749595623809,0.0317,109660.0,109650.0,0.00048343]
[1749595624025,0.0317,109660.0,109650.0,0.00248343]
[1749595624241,0.0317,109660.0,109650.0,0.00548343]
[1749595624459,0.0317,109660.0,109650.0,0.00248343]
[1749595624880,0.0327,109660.0,109650.0,0.00548343]
[1749595625314,0.0327,109660.0,109650.0,0.00348343]
[1749595625524,0.0327,109660.0,109650.0,0.02053038]
[1749595625777,0.0327,109660.0,109650.0,0.02253038]
[1749595625990,0.0327,109660.0,109650.0,0.022531]
[1749595626838,0.0327,109660.0,109650.0,0.00548343]
[1749595627071,0.0327,109660.0,109650.0,0.02252395]
[1749595627277,0.0327,109660.0,109650.0,0.02252316]